[Event "8th Brazilian Open SESC Caioba 2024"]
[Site "Caioba"]
[Date "2024.06.25"]
[Round "3.1"]
[White "Mekhitarian, Krikor Sevag"]
[Black "Rodrigues, Edgar"]
[Result "1-0"]
[ECO "B42"]
[WhiteElo "2554"]
[BlackElo "2229"]
[Annotator "TA"]
[PlyCount "93"]
[EventDate "2024.06.15"]
[EventCountry "BRA"]
[SourceTitle "playchess.com"]
[Source "ChessBase"]
[SourceQuality "1"]
[TimeControl "5400+30"]

{[%evp 9,93,33,66,60,64,60,77,77,112,96,98,97,107,103,136,143,139,123,123,120,129,106,122,128,287,275,281,297,458,480,460,443,470,445,445,423,477,370,398,389,393,404,385,380,385,385,451,452,452,436,477,474,480,485,483,481,487,489,495,495,516,500,546,551,638,637,669,643,725,682,1166,1120,1365,1293,3351,3052,29973,5029,29972,29972,5830,4929,5493,4829,2520,1964]} 1. e4 {[%emt 0:02:52]} c5 {[%emt 0:00:30]} 2. Nf3 {[%emt 0:00:03]} e6 {[%emt 0:00:06]} 3. d4 {[%emt 0:00:08]} cxd4 {[%emt 0:00:05]} 4. Nxd4 {[%emt 0:00:02]} a6 {[%emt 0:00:10]} 5. Bd3 {[%emt 0:00:05]} b5 {[%emt 0:00:26][%cal Bb7b5,Bb5b4][%mdl 32]} 6. a4 {[%emt 0:00:21][%cal Ba2a4,Ba4a5][%mdl 32]} b4 {[%emt 0:00:54]} 7. O-O {[%emt 0:00:50] White is more active.} Qb6 {[%emt 0:00:43]} 8. Nb3 {[%emt 0:11:27] White is better.} Nc6 {[%emt 0:06:21]} 9. a5 {[%emt 0:10:12]} Qc7 {[%emt 0:01:31]} 10. Be3 {[%emt 0:17:39]} Nf6 {[%emt 0:02:10]} 11. N1d2 {[%emt 0:01:24]} d5 {[%emt 0:12:32] Dodges Nc4} 12. Bb6 {[%emt 0:00:29]} Qf4 {[%emt 0:05:52]} 13. exd5 {[%emt 0:11:51]} Nxd5 {[%emt 0:02:42]} 14. Be4 {[%emt 0:00:29]} Be7 {[%emt 0:02:48]} 15. Re1 $36 {[%emt 0:15:10][%mdl 2048] White is in control.} O-O {[%emt 0:01:26]} 16. Nc4 {[%emt 0:00:22]} Bf6 $2 {[%emt 0:18:26]} (16... Bb7 $16 {was necessary.}) 17. Bxd5 $18 {[%emt 0:04:17]} exd5 {[%emt 0:00:04]} 18. Qxd5 {[%emt 0:00:09]} Be6 {[%emt 0:05:15]} (18... Bf5 $142) 19. Rxe6 $1 {[%emt 0:00:17]} fxe6 {[%emt 0:00:26]} 20. Qxc6 {[%emt 0:00:03]} Kh8 {[%emt 0:02:03]} 21. Be3 {[%emt 0:02:57]} Qg4 {[%emt 0:02:27] [#] And now ...Rfc8 would win.} 22. Nbd2 {[%emt 0:00:58]} Rfc8 {[%emt 0:01:25]} 23. Qf3 {[%emt 0:00:58]} Qxf3 {[%emt 0:00:52]} 24. gxf3 {[%emt 0:00:02]} Rc6 {[%emt 0:00:30]} 25. Re1 {[%emt 0:01:47]} Rd8 {[%emt 0:00:45]} 26. b3 {[%emt 0:00:23]} Bc3 {[%emt 0:06:43]} 27. Re2 {[%emt 0:00:10]} h6 {[%emt 0:00:51]} 28. f4 {[%emt 0:00:26]} Rd5 {[%emt 0:01:38]} 29. Kg2 {[%emt 0:01:15]} Kh7 {[%emt 0:00:35]} 30. Ne4 {[%emt 0:03:03]} Bf6 {[%emt 0:00:24]} 31. Nxf6+ {[%emt 0:00:45]} gxf6 {[%emt 0:00:02]} 32. Bd2 {[%emt 0:00:05]} Rb5 {[%emt 0:00:25]} 33. Re3 {[%emt 0:00:25]} Kg6 {[%emt 0:01:15]} 34. Rd3 {[%emt 0:00:08]} h5 {[%emt 0:02:45]} 35. Kf3 {[%emt 0:00:16]} Rd5 {[%emt 0:05:16]} 36. Bxb4 {[%emt 0:02:56]} Rxd3+ {[%emt 0:00:08]} 37. cxd3 {[%emt 0:00:02][%cal Bc2d3,Bd3d4][%mdl 32]} Rc7 {[%emt 0:00:51]} 38. Bd6 {[%emt 0:00:13]} Rd7 {[%emt 0:01:16]} 39. b4 {[%emt 0:00:13]} Kf5 {[%emt 0:02:10]} 40. d4 {[%emt 0:00:11]} Rg7 {[%emt 0:01:28]} 41. Bc5 {[%emt 0:01:03]} Rg1 {[%emt 0:00:43] [#]} 42. b5 $1 {[%emt 0:00:59]} axb5 {[%emt 0:00:17]} (42... e5 43. bxa6) 43. Nd6+ {[%emt 0:00:06]} Kg6 {[%emt 0:00:06]} 44. f5+ {[%emt 0:00:56]} exf5 {[%emt 0:00:29]} 45. Nxb5 {[%emt 0:00:03] White wants to mate with a6. White is clearly winning.} Rb1 {[%emt 0:00:20]} 46. Na3 {[%emt 0:00:12]} Rb3+ {[%emt 0:01:37]} 47. Ke2 {[%emt 0:01:07] Black did not feel at home in the position after the opening.   Weighted Error Value: White=0.10 (very precise) /Black=0.31.  Mistake:       	---       	Black=2      Inaccurate:     	---       	Black=2      OK:         	White=14    	Black=6      Best:        	White=1     	Black=3      Strong:       	White=1     	---} 1-0

[Event "8th Brazilian Open SESC Caioba 2024"]
[Site "Caioba"]
[Date "2024.06.25"]
[Round "3.2"]
[White "Rodi, Luis Ernesto"]
[Black "Hernandez Guerrero, Gilberto"]
[Result "1/2-1/2"]
[ECO "B56"]
[WhiteElo "2208"]
[BlackElo "2506"]
[Annotator "TA"]
[PlyCount "29"]
[EventDate "2024.06.15"]
[EventCountry "BRA"]
[SourceTitle "playchess.com"]
[Source "ChessBase"]
[SourceQuality "1"]
[TimeControl "5400+30"]

{[%evp 10,29,38,29,36,43,40,37,76,80,89,21,23,31,25,24,11,18,24,8,5,1]} 1. e4 {[%emt 0:04:32]} c5 {[%emt 0:00:48]} 2. Nf3 {[%emt 0:00:23]} Nc6 {[%emt 0:00:28]} 3. d4 {[%emt 0:00:24]} cxd4 {[%emt 0:00:07]} 4. Nxd4 {[%emt 0:00:05]} Nf6 {[%emt 0:00:47]} 5. Nc3 {[%emt 0:00:08]} d6 {[%emt 0:00:08]} 6. f3 {[%emt 0:00:34]} Qb6 {[%emt 0:02:06]} 7. Be3 {[%emt 0:01:26]} a6 {[%emt 0:10:27]} 8. Qd2 {[%emt 0:00:39]} Nxd4 {[%emt 0:04:40] White is slightly better.} 9. Bxd4 {[%emt 0:00:35]} Qa5 {[%emt 0:00:08]} 10. Bc4 {[%emt 0:01:15]} ({White should try} 10. Qf2 $16) 10... e5 $11 {[%emt 0:00:34]} 11. Be3 {[%emt 0:00:19]} Be6 {[%emt 0:00:21]} 12. Nd5 {[%emt 0:01:59]} Qxd2+ {[%emt 0:00:55]} 13. Kxd2 {[%emt 0:00:08]} Rc8 {[%emt 0:03:59] Prevents Nc7+.} 14. Bb3 {[%emt 0:14:38]} Bxd5 {[%emt 0:07:21]} 15. Bxd5 {[%emt 1:10:55] Weighted Error Value: White=0.17 (very precise) /Black=0.07 (flawless) .  Mistake:       	White=1     	---        Inaccurate:     	---       	Black=1      OK:         	White=1     	Black=2      Best:        	---       	Black=2} 1/2-1/2

[Event "8th Brazilian Open SESC Caioba 2024"]
[Site "Caioba"]
[Date "2024.06.25"]
[Round "3.4"]
[White "Duarte Napoles, Fanny"]
[Black "Di Berardino, Diego Rafael"]
[Result "0-1"]
[ECO "A36"]
[WhiteElo "2202"]
[BlackElo "2473"]
[Annotator "TA"]
[PlyCount "92"]
[EventDate "2024.06.15"]
[EventCountry "BRA"]
[SourceTitle "playchess.com"]
[Source "ChessBase"]
[SourceQuality "1"]
[TimeControl "5400+30"]

{[%evp 12,92,17,0,6,-1,0,-9,0,0,0,-27,30,28,31,30,21,16,20,25,39,-5,-11,-22,-19,-17,-16,-22,-22,-31,-14,-27,-32,-68,-61,-59,-57,-58,-23,-65,-22,-37,-39,-38,-49,-65,-53,-99,-98,-104,-104,-202,-202,-210,-222,-250,-235,-280,-280,-433,-154,-151,0,-442,-439,-435,-435,-789,-427,-416,-416,-2184,-1913,-2311,-2302,-29971,-29957,-29985,-29986,-29986,-29987,-29987,-29988]} 1. c4 {[%emt 1:31:00]} g6 {[%emt 0:04:49]} 2. Nc3 {[%emt 0:00:00]} c5 {[%emt 0:00:11]} 3. g3 {[%emt 0:00:00]} Bg7 {[%emt 0:00:05]} 4. Bg2 {[%emt 0:00:00]} Nc6 {[%emt 0:00:05]} 5. e3 {[%emt 0:00:00]} d6 {[%emt 0:05:26]} 6. Nge2 {[%emt 0:00:00][%cal Bg1e2,Be2c3,Bc3d5][%mdl 32]} e5 {[%emt 0:03:25]} 7. Nd5 {[%emt 0:00:00]} Nge7 {[%emt 0:00:44]} 8. Nec3 {[%emt 0:00:00]} O-O {[%emt 0:06:41]} 9. O-O {[%emt 0:00:00]} a6 {[%emt 0:01:38] The position is equal.} 10. a3 {[%emt 0:00:00]} Rb8 {[%emt 0:01:33]} 11. b4 {[%emt 0:00:00]} cxb4 {[%emt 0:07:01]} ({Black should try} 11... b5) 12. axb4 $11 {[%emt 0:00:00]} Nxd5 {[%emt 0:02:04]} 13. Nxd5 {[%emt 0:00:00]} Be6 {[%emt 0:16:16]} 14. Ba3 {[%emt 0:00:00]} b5 {[%emt 0:01:57]} 15. d3 {[%emt 0:00:00]} Ne7 {[%emt 0:02:39]} 16. Nxe7+ {[%emt 0:00:00]} Qxe7 {[%emt 0:00:03]} 17. cxb5 {[%emt 0:00:00]} axb5 {[%emt 0:00:40][%cal Oe5e4]} 18. Bb2 {[%emt 0:00:00]} d5 {[%emt 0:01:54]} 19. Qd2 {[%emt 0:00:00]} Rfc8 {[%emt 0:00:46]} 20. Rfc1 {[%emt 0:00:00]} Qd6 {[%emt 0:03:58]} 21. h4 {[%emt 0:00:00]} h5 {[%emt 0:00:32]} 22. Bc3 {[%emt 0:00:00]} d4 {[%emt 0:02:39]} 23. exd4 {[%emt 0:00:00]} exd4 {[%emt 0:00:03]} 24. Bb2 {[%emt 0:00:00]} Bf8 {[%emt 0:00:17]} 25. Rab1 {[%emt 0:00:00]} Rxc1+ {[%emt 0:03:31]} ({But not} 25... Qxb4 26. Qxb4 Bxb4 27. Rxc8+ Rxc8 28. Bxd4 $14) 26. Bxc1 {[%emt 0:00:00]} Rc8 {[%emt 0:02:00]} 27. Be4 {[%emt 0:00:00]} Bd5 {[%emt 0:02:42]} 28. Bxd5 {[%emt 0:00:00]} Qxd5 {[%emt 0:00:54]} 29. Qd1 {[%emt 0:00:00]} (29. Ra1 $1 $15 {feels stronger.}) 29... Rc3 $17 {[%emt 0:09:36]} 30. Bb2 {[%emt 0:00:00]} Rb3 {[%emt 0:01:04]} 31. Ba1 {[%emt 0:00:00]} (31. Qe2 $17) 31... Rxb4 $19 {[%emt 0:00:38]} 32. Rc1 {[%emt 0:00:00]} Ra4 {[%emt 0:00:55]} 33. Bb2 {[%emt 0:00:00]} Ra2 {[%emt 0:02:01]} 34. Rb1 {[%emt 0:00:00]} b4 {[%emt 0:06:12]} 35. Bc1 {[%emt 0:00:00]} (35. Qd2 {might work better.}) 35... Qf5 $2 {[%emt 0:00:38]} (35... Bd6 $19 {[%cal Od6g3] ...Bxg3! would now be deadly.} 36. Bf4 Bf8 (36... Bxf4 $2 37. gxf4 Qb7 38. Rb3 $19)) 36. Bb2 $17 {[%emt 0:00:00]} Qd5 $2 {[%emt 0:00:41] Repels Qb3. Black is much more active.} (36... Bc5 $17 37. Qb3 Qe6 38. Qxe6 fxe6) 37. Bc1 $19 {[%emt 0:00:00]} Bd6 {[%emt 0:00:41][%cal Od6g3] [#] Hoping for ...Bxg3!} 38. Bd2 {[%emt 0:00:00]} b3 {[%emt 0:01:07]} 39. Qe1 {[%emt 0:05:45]} ({Much worse is} 39. Rxb3 Rxd2 40. Qxd2 Qxb3) (39. Be1 $142 b2 40. Kh2) 39... Kg7 {[%emt 0:01:21][%cal Og6g5] ...g5! is the strong threat.} 40. Qd1 {[%emt 0:01:04]} Rc2 {[%emt 0:01:14]} 41. Qe1 {[%emt 0:03:38]} (41. Rc1 $142 Rxc1 42. Bxc1) 41... b2 {[%emt 0:02:45]} 42. Qd1 {[%emt 0:00:34]} Qc6 {[%emt 0:00:06] Threatens to win with ...Kh7.} 43. Kh2 {[%emt 0:01:34] [#]} Bb4 $1 {[%emt 0:00:57][%mdl 512] Black mates.} 44. Be1 {[%emt 0:01:15]} (44. Rxb2 Rxb2) 44... Bxe1 {[%emt 0:01:44]} 45. Qxe1 {[%emt 0:00:01]} Rc1 {[%emt 0:00:07]} 46. Qe5+ {[%emt 0:00:50]} Kh7 {[%emt 0:00:04] Weighted Error Value: White=0.73/Black=0.34.  Missed win:     	---       	Black=1      Mistake:       	White=5     	Black=2      Inaccurate:     	White=4     	Black=3      OK:         	White=6     	Black=14     Best:        	White=3     	Black=2} 0-1

[Event "8th Brazilian Open SESC Caioba 2024"]
[Site "Caioba"]
[Date "2024.06.25"]
[Round "3.5"]
[White "Santiago, Yago De Moura"]
[Black "Luz, Arthur Nader"]
[Result "1/2-1/2"]
[ECO "E70"]
[WhiteElo "2462"]
[BlackElo "2172"]
[Annotator "TA"]
[PlyCount "86"]
[EventDate "2024.06.15"]
[EventCountry "BRA"]
[SourceTitle "playchess.com"]
[Source "ChessBase"]
[SourceQuality "1"]
[TimeControl "5400+30"]

{[%evp 11,86,35,37,27,40,20,39,20,38,9,51,-13,-2,-17,-10,-2,0,0,0,0,0,-9,0,0,19,31,33,36,29,0,0,0,0,0,0,0,0,0,0,0,0,-28,-28,-74,-49,-64,-39,-140,-165,-143,-139,-143,-102,-112,-111,-122,-111,-121,-116,-126,-93,-106,-99,-91,-105,-93,-89,-163,-109,-196,-175,-189,-184,-222,-25,-25,0]} 1. d4 {[%emt 0:02:57]} Nf6 {[%emt 0:12:56]} 2. c4 {[%emt 0:00:09]} c5 {[%emt 0:00:05]} 3. d5 {[%emt 0:00:39]} e6 {[%emt 0:00:07]} 4. Nc3 {[%emt 0:00:08]} d6 {[%emt 0:00:14]} 5. e4 {[%emt 0:02:37]} g6 {[%emt 0:00:15]} 6. Bd3 {[%emt 0:02:46]} Bg7 {[%emt 0:00:06]} 7. Bg5 {[%emt 0:00:15]} h6 {[%emt 0:03:56]} 8. Bd2 {[%emt 0:00:47]} O-O {[%emt 0:00:34]} 9. Nge2 {[%emt 0:01:18] White is slightly better.} Nbd7 {[%emt 0:06:03]} 10. f4 {[%emt 0:05:16] Dodges Ne5. White wants to play dxe6.} e5 {[%emt 0:07:49]} 11. O-O {[%emt 0:03:38]} (11. f5 $14) 11... exf4 $11 {[%emt 0:00:44]} 12. Bxf4 {[%emt 0:00:15]} Qe7 {[%emt 0:00:54]} 13. Ng3 {[%emt 0:00:32][%cal Be2g3,Bg3h1,Bh1f2,Bf2g4][%mdl 32] Prevents Nh5} Ne5 {[%emt 0:06:36]} (13... h5 {looks sharper.} 14. Bg5 Qe5 15. Qd2 Ng4) 14. Be2 {[%emt 0:00:30]} Nh7 {[%emt 0:01:08]} 15. Qd2 {[%emt 0:03:07]} h5 {[%emt 0:03:14]} 16. Rae1 {[%emt 0:00:59]} h4 {[%emt 0:02:33]} 17. Nh1 {[%emt 0:00:16]} f5 {[%emt 0:01:03]} 18. exf5 {[%emt 0:00:48]} Bxf5 {[%emt 0:00:12]} 19. Nf2 {[%emt 0:00:12]} g5 {[%emt 0:05:24]} 20. Bxe5 {[%emt 0:05:38]} Bxe5 {[%emt 0:02:56]} 21. Bd3 {[%emt 0:00:13][%cal Og2g3]} Qg7 {[%emt 0:04:29]} 22. Bxf5 {[%emt 0:02:09]} Rxf5 {[%emt 0:00:05]} 23. Ng4 {[%emt 0:00:10]} Bd4+ {[%emt 0:09:33]} 24. Kh1 {[%emt 0:00:10]} Rxf1+ {[%emt 0:04:02]} 25. Rxf1 {[%emt 0:00:07]} Rf8 {[%emt 0:00:02]} 26. Re1 {[%emt 0:00:32]} Nf6 $40 {[%emt 0:00:54][%mdl 128] Black attacks.} 27. Qd1 {[%emt 0:05:43]} (27. Nxf6+ $11 Qxf6 28. Qe2 (28. Ne4 $2 {gets mated.} Qf1+ 29. Rxf1 Rxf1#)) 27... Nxg4 $17 {[%emt 0:05:27]} (27... Bxc3 {seems wilder.} 28. bxc3 Nxg4 29. Qxg4 Qe5) 28. Qxg4 {[%emt 0:00:10]} Qf6 {[%emt 0:07:11][%cal Of6f1] ( -> ...Qf1+!)} (28... Bxc3 $5 29. bxc3 Qe5 30. Qe6+ Qxe6 31. dxe6 Kg7 $15) 29. Qe6+ {[%emt 0:01:53]} (29. Qe2 $1 $15) 29... Qxe6 $1 {[%emt 0:01:13]} 30. dxe6 {[%emt 0:00:07] e7 is the strong threat.} Bxc3 $1 {[%emt 0:00:15]} 31. bxc3 {[%emt 0:00:02][%mdl 4096] Endgame. KR-KR} Re8 {[%emt 0:00:25]} 32. g3 {[%emt 0:02:45]} hxg3 $1 {[%emt 0:01:57]} 33. hxg3 {[%emt 0:00:10]} Kg7 $1 {[%emt 0:00:04]} 34. Kg2 {[%emt 0:07:10]} Kf6 {[%emt 0:00:05]} 35. Rh1 {[%emt 0:00:18]} (35. Rf1+ Kxe6 36. Rd1 Rf8 37. Re1+ Kd7 $19) 35... Re7 {[%emt 0:02:04]} 36. Kf3 {[%emt 0:01:24]} Rxe6 {[%emt 0:04:57]} 37. Rh7 {[%emt 0:03:53]} Re7 {[%emt 0:01:47]} 38. Rh6+ {[%emt 0:00:07]} Ke5 {[%emt 0:00:36]} 39. Rg6 {[%emt 0:03:46] [#]} (39. Kg4 $17) 39... Kf5 {[%emt 0:00:16]} ({Black should try} 39... Rf7+ $1 $19 40. Kg4 a5 41. Rxg5+ Ke4) 40. Rxd6 {[%emt 0:00:10]} (40. Rg8 $17 {was necessary.}) 40... g4+ $19 {[%emt 0:00:05]} 41. Kf2 {[%emt 0:00:06] [#]} b6 $1 {[%emt 0:00:22]} 42. Rd5+ {[%emt 0:01:30]} Kf6 $2 {[%emt 0:02:45]} (42... Ke4 $19 {And now ...Rf7+ would win.} 43. Rd8 Rh7) 43. Rd6+ $1 $11 {[%emt 0:00:23]} Kf5 {[%emt 0:05:39] Weighted Error Value: White=0.19 (very precise) /Black=0.14 (very precise) .  Missed win:     	---       	Black=1      Mistake:       	White=5     	Black=1      Inaccurate:     	White=3     	Black=1      OK:         	White=12    	Black=14     Best:        	White=2     	Black=4      Strong:       	White=1     	Black=4} 1/2-1/2

[Event "8th Brazilian Open SESC Caioba 2024"]
[Site "Caioba"]
[Date "2024.06.25"]
[Round "3.6"]
[White "Acosta, Pablo Ismael"]
[Black "Amura, Claudia"]
[Result "1/2-1/2"]
[ECO "A13"]
[WhiteElo "2449"]
[BlackElo "2167"]
[Annotator "TA"]
[PlyCount "31"]
[EventDate "2024.06.15"]
[EventCountry "BRA"]
[SourceTitle "playchess.com"]
[Source "ChessBase"]
[SourceQuality "1"]
[TimeControl "5400+30"]

{[%evp 15,31,21,29,19,16,13,27,0,8,11,23,14,22,25,31,0,0,-27]} 1. Nf3 {[%emt 0:00:39]} Nf6 {[%emt 0:01:57]} 2. c4 {[%emt 0:01:15]} e6 {[%emt 0:00:09]} 3. b3 {[%emt 0:00:46]} b6 {[%emt 0:00:33]} 4. Bb2 {[%emt 0:00:09]} Bb7 {[%emt 0:00:19]} 5. e3 {[%emt 0:03:33]} Be7 {[%emt 0:01:39]} 6. Be2 {[%emt 0:05:17]} O-O {[%emt 0:00:21]} 7. O-O {[%emt 0:01:59]} d6 {[%emt 0:04:52]} 8. Nc3 {[%emt 0:01:57]} Nbd7 {[%emt 0:00:47]} 9. Qc2 {[%emt 0:01:11]} c5 {[%emt 0:16:59]} 10. Rad1 {[%emt 0:01:58]} Rc8 {[%emt 0:00:08]} 11. Qb1 {[%emt 0:02:14] White has an edge.} Qc7 {[%emt 0:01:57]} 12. d4 {[%emt 0:01:31]} d5 {[%emt 0:01:41]} 13. cxd5 {[%emt 0:02:47]} Nxd5 {[%emt 0:01:47]} 14. Nxd5 {[%emt 0:06:09]} Bxd5 {[%emt 0:06:45]} 15. e4 {[%emt 0:02:42]} Bb7 {[%emt 0:00:04]} 16. Bc4 {[%emt 0:14:49] An uneventful encounter.   Weighted Error Value: White=0.12 (very precise) /Black=0.05 (flawless) .  Inaccurate:     	White=3     	---        OK:         	White=2     	Black=2} 1/2-1/2

[Event "8th Brazilian Open SESC Caioba 2024"]
[Site "Caioba"]
[Date "2024.06.25"]
[Round "3.7"]
[White "Tsuboi, Edson Kenji"]
[Black "Cubas, Jose Fernando"]
[Result "0-1"]
[ECO "B32"]
[WhiteElo "2193"]
[BlackElo "2417"]
[Annotator "RC"]
[PlyCount "79"]
[EventDate "2024.06.15"]
[EventCountry "BRA"]
[SourceTitle "playchess.com"]
[Source "ChessBase"]
[SourceQuality "1"]
[TimeControl "5400+30"]

1. e4 {[%emt 0:00:05]} c5 {[%emt 0:00:16]} 2. Nf3 {[%emt 0:00:11]} Nc6 {[%emt 0:00:14]} 3. d4 {[%emt 0:00:12]} cxd4 {[%emt 0:00:11]} 4. Nxd4 {[%emt 0:00:08]} e5 {[%emt 0:00:21]} 5. Nb5 {[%emt 0:00:38]} d6 {[%emt 0:00:05]} 6. N1c3 {[%emt 0:00:36]} a6 {[%emt 0:00:33]} 7. Na3 {[%emt 0:00:06]} Be6 {[%emt 0:03:20]} 8. Nc4 {[%emt 0:03:34]} Rb8 {[%emt 0:05:34]} 9. Nd5 {[%emt 0:13:06]} Bxd5 {[%emt 0:14:48]} 10. exd5 {[%emt 0:00:09]} Nce7 {[%emt 0:00:09]} 11. a4 {[%emt 0:05:37]} Nf6 {[%emt 0:04:35]} 12. Ne3 {[%emt 0:16:57]} g6 {[%emt 0:00:58]} 13. Be2 {[%emt 0:19:06]} Bg7 {[%emt 0:00:06]} 14. a5 {[%emt 0:00:32]} O-O {[%emt 0:00:50]} 15. O-O {[%emt 0:08:11]} Ne8 {[%emt 0:05:31]} 16. Nc4 {[%emt 0:02:26]} Nc7 {[%emt 0:12:15]} 17. Nb6 {[%emt 0:01:16]} f5 {[%emt 0:03:19]} 18. c3 {[%emt 0:12:38]} Kh8 {[%emt 0:07:39]} 19. Kh1 {[%emt 0:04:38]} Na8 {[%emt 0:06:52]} 20. Nxa8 {[%emt 0:01:16]} Rxa8 {[%emt 0:00:05]} 21. Bg5 {[%emt 0:02:20]} Bf6 {[%emt 0:03:31]} 22. Bxf6+ {[%emt 0:01:52]} Rxf6 {[%emt 0:00:02]} 23. c4 {[%emt 0:00:08]} g5 {[%emt 0:03:45]} 24. g3 {[%emt 0:01:47]} g4 {[%emt 0:02:02]} 25. f3 {[%emt 0:00:40]} gxf3 {[%emt 0:00:32]} 26. Rxf3 {[%emt 0:00:35]} Ng6 {[%emt 0:01:17]} 27. Qb3 {[%emt 0:00:46]} Qe7 {[%emt 0:00:50]} 28. Raf1 {[%emt 0:00:33]} Raf8 {[%emt 0:01:42]} 29. Qc3 {[%emt 0:00:24]} f4 {[%emt 0:02:04]} 30. gxf4 {[%emt 0:03:26]} Nxf4 {[%emt 0:01:32]} 31. Qe3 {[%emt 0:00:23]} Qe8 {[%emt 0:07:16]} 32. Bd1 {[%emt 0:00:30]} Qg6 {[%emt 0:02:45]} 33. Rg1 {[%emt 0:00:23]} Qf5 {[%emt 0:00:12]} 34. Rfg3 {[%emt 0:01:12]} Rh6 {[%emt 0:04:14]} 35. Qf2 {[%emt 0:01:04]} Qc8 {[%emt 0:01:26]} 36. Bg4 {[%emt 0:00:34]} Qxc4 {[%emt 0:00:29]} 37. Be6 {[%emt 0:00:15]} Qe4+ {[%emt 0:00:42]} 38. R1g2 {[%emt 0:01:16]} Rg6 {[%emt 0:07:28]} 39. Rxg6 {[%emt 0:00:30]} hxg6 {[%emt 0:00:30]} 40. Qh4+ {[%emt 0:00:30]} 0-1

[Event "8th Brazilian Open SESC Caioba 2024"]
[Site "Caioba"]
[Date "2024.06.25"]
[Round "3.8"]
[White "Sunye Neto, Jaime"]
[Black "Federzoni, Enzo"]
[Result "1/2-1/2"]
[ECO "A36"]
[WhiteElo "2398"]
[BlackElo "2164"]
[Annotator "RC"]
[PlyCount "60"]
[EventDate "2024.06.15"]
[EventCountry "BRA"]
[SourceTitle "playchess.com"]
[Source "ChessBase"]
[SourceQuality "1"]
[TimeControl "5400+30"]

1. c4 {[%emt 0:00:00]} g6 {[%emt 0:09:47]} 2. g3 {[%emt 0:00:36]} c5 {[%emt 0:00:55]} 3. Bg2 {[%emt 0:00:10]} Bg7 {[%emt 0:00:06]} 4. Nc3 {[%emt 0:00:24]} Nc6 {[%emt 0:00:08]} 5. Nf3 {[%emt 0:05:46]} e6 {[%emt 0:01:06]} 6. e3 {[%emt 0:09:21]} Nge7 {[%emt 0:01:39]} 7. O-O {[%emt 0:10:27]} O-O {[%emt 0:03:35]} 8. d4 {[%emt 0:01:24]} cxd4 {[%emt 0:00:12]} 9. Nxd4 {[%emt 0:02:54]} d5 {[%emt 0:01:45]} 10. cxd5 {[%emt 0:04:09]} Nxd4 {[%emt 0:00:15]} 11. exd4 {[%emt 0:00:19]} Nxd5 {[%emt 0:01:05]} 12. Nxd5 {[%emt 0:04:02]} exd5 {[%emt 0:00:09]} 13. Qb3 {[%emt 0:03:36]} Qb6 {[%emt 0:05:35]} 14. Be3 {[%emt 0:09:26]} Be6 {[%emt 0:07:21]} 15. Qxb6 {[%emt 0:18:25]} axb6 {[%emt 0:00:13]} 16. Rfc1 {[%emt 0:00:27]} Rfc8 {[%emt 0:07:34]} 17. a3 {[%emt 0:05:40]} Rc6 {[%emt 0:04:04]} 18. Rxc6 {[%emt 0:06:01]} bxc6 {[%emt 0:00:08]} 19. Rc1 {[%emt 0:00:08]} Bd7 {[%emt 0:06:59]} 20. Rc3 {[%emt 0:08:07]} Re8 {[%emt 0:10:33]} 21. Rd3 {[%emt 0:01:44]} Bf5 {[%emt 0:05:49]} 22. Rd1 {[%emt 0:04:14]} Ra8 {[%emt 0:02:35]} 23. Rc1 {[%emt 0:00:15]} Bd7 {[%emt 0:00:39]} 24. Rc3 {[%emt 0:00:40]} Re8 {[%emt 0:00:33]} 25. Rd3 {[%emt 0:00:06]} g5 {[%emt 0:10:38]} 26. h3 {[%emt 0:00:13]} h6 {[%emt 0:00:25]} 27. b4 {[%emt 0:02:13]} b5 {[%emt 0:00:56]} 28. Kf1 {[%emt 0:00:25]} f5 {[%emt 0:01:12]} 29. f4 {[%emt 0:00:12]} g4 {[%emt 0:01:52]} 30. h4 {[%emt 0:00:11]} Kf7 {[%emt 0:00:51]} 1/2-1/2